Cogmind - Beta 13 @@@ ROGUE MODE // 2024.03.12 @ 19:05:06 Player: Baxter Result: Self-destructed Performance ------------- Evolutions (1) 500 Regions Visited (5) 1000 Robots Destroyed (50) 250 Value Destroyed (1291) 1291 Prototype IDs (1) 20 Alien Tech Used (0) 0 Bonus (0) 0 TOTAL SCORE: 3061 Bonus ------- None Cogmind --------- Core Integrity 286/400 Matter 226/300 Energy 265/265 System Corruption 1% Temperature Cool (0) Movement Rolling (105) Ox1 Location -9/Exiles Parts ------- > --- POWER (1) -------- Improved Ion Engine > --- PROPULSION (2) --- Wheel Compact Wheel > --- UTILITY (4) ------ Medium Storage Unit Improved Terrain Scanner Seismic Detector > --- WEAPON (2) ------- Flak Gun Flak Gun > --- INVENTORY (10) --- Ion Engine High-capacity Matter Pod (170) Structural Scanner Light Armor Plating Light Armor Plating Light Armor Plating Improved Medium Armor Plating Corruption Screen Rocket Launcher Hammer Peak State ------------ > --- POWER ------------ Improved Ion Engine > --- PROPULSION ------- Wheel Compact Wheel > --- UTILITY ---------- Medium Storage Unit Improved Terrain Scanner Seismic Detector System Restoration Module > --- WEAPON ----------- Flak Gun Flak Gun > --- INVENTORY -------- Ion Engine High-capacity Matter Pod Structural Scanner Light Armor Plating Light Armor Plating Light Armor Plating Improved Medium Armor Plating Rocket Launcher Hammer [Rating: 22] Favorites ----------- Power Light Ion Engine Engine Light Ion Engine Power Core Light Nuclear Core Propulsion Light Treads Treads Light Treads Wheel Compact Wheel Hover Unit Aerolev Unit Utility Medium Storage Unit Device Seismic Detector Storage Medium Storage Unit Hackware Hacking Suite Protection Light Armor Plating Weapon Assault Rifle Energy Gun EM Pulse Gun Ballistic Gun Assault Rifle Launcher Rocket Launcher Impact Weapon Hammer Build | -11 -10 -10 -9 -9 -9 ------- Run | Yrd Mat Min Mat Min Exi Slots Evolved 2 | . . . 2 . . Power . | . . . . . . Propulsion . | . . . . . . Utility 2 | . . . 2 . . Weapon . | . . . . . . Parts Attached 81 | 7 20 8 29 17 . Power 9 | 1 2 3 3 . . Engine 8 | 1 2 2 3 . . Core 1 | . . 1 . . . Reactor . | . . . . . . Propulsion 16 | 2 3 . 7 4 . Treads 6 | 1 2 . 1 2 . Leg . | . . . . . . Wheel 8 | 1 1 . 4 2 . Hover 2 | . . . 2 . . Flight . | . . . . . . Utility 36 | 2 9 3 14 8 . Device 18 | 1 4 1 7 5 . Storage 3 | 1 1 . 1 . . Processor . | . . . . . . Hackware 1 | . . . 1 . . Protection 14 | . 4 2 5 3 . Artifact . | . . . . . . Weapon 20 | 2 6 2 5 5 . Energy Gun 1 | . . . 1 . . Energy Cannon . | . . . . . . Ballistic Gun 16 | 2 6 1 3 4 . Ballistic Cannon . | . . . . . . Launcher 1 | . . 1 . . . Special Weapon . | . . . . . . Impact Weapon 2 | . . . 1 1 . Slashing Weapon . | . . . . . . Piercing Weapon . | . . . . . . Special Melee Weapon . | . . . . . . Unidentified Prototypes 1 | . . . 1 . . Parts Lost 8 | . . . 6 2 . Power 1 | . . . 1 . . Propulsion 1 | . . . 1 . . Utility 3 | . . . 2 1 . Weapon 3 | . . . 2 1 . Highest Loss Streak 5 | . . . 5 1 . To Critical Strikes . | . . . . . . Average Slot Usage (%) 98 | . 100 100 97 98 88 Engine 11 | . 14 13 7 11 11 Treads 11 | . 14 14 10 8 . Wheel 13 | . 14 14 11 13 22 Device 14 | . 8 7 20 21 22 Storage 12 | . 14 14 11 11 11 Protection 8 | . 5 6 11 10 . Ballistic Gun 21 | . 28 27 15 14 22 Impact Weapon 2 | . . . 1 7 . Naked Turns . | . . . . . . Heaviest Build 36 | 12 22 22 36 36 27 Greatest Support 26 | 20 20 20 20 26 26 Greatest Overweight (x) 4 | . 1 1 4 3 1 Average Overweight (x) . | . . . 2 1 1 Largest Inventory Capacity 10 | 8 10 10 10 10 10 Average Capacity 9 | 7 9 10 10 10 10 Most Carried 10 | 8 10 10 10 10 10 Average Carried 9 | 5 9 9 9 9 10 Final Capacity 10 | 8 10 10 10 10 10 Final Carried 10 | 7 10 10 9 10 10 Class Distribution -------------------- 67% | Mutant 32% | Scavenger-Mutant Dominant Class ---------------- Mutant | -10/Materials Mutant | -10/Mines Scavenger-Mutant | -9/Materials Scavenger-Mutant | -9/Mines Scavenger-Mutant | -9/Exiles Resources | -11 -10 -10 -9 -9 -9 ----------- Run | Yrd Mat Min Mat Min Exi Matter Collected 1813 | 306 352 280 569 306 . Remotely . | . . . . . . Salvage Created 1963 | 145 477 196 953 192 . Parts 121 | 8 30 21 52 10 . Haulers Intercepted 6 | . 2 . 4 . . Recyclers Shooed 2 | . 1 1 . . . Parts Field Recycled . | . . . . . . Retrieved Matter . | . . . . . . Parts Self-Destructed . | . . . . . . Prevented . | . . . . . . Kills | -11 -10 -10 -9 -9 -9 ------- Run | Yrd Mat Min Mat Min Exi Combat Hostiles Destroyed 34 | . 8 7 15 4 . Guns 33 | . 8 7 15 3 . Classes Destroyed 10 | 2 5 . 3 . . Worker 1 | . . . 1 . . Tunneler 3 | 3 . . . . . Hauler 6 | . 2 . 4 . . Recycler 2 | 1 1 . . . . Operator 2 | . 1 . 1 . . Watcher 2 | . 2 . . . . Swarmer 6 | . 3 3 . . . Grunt 21 | . 5 4 10 2 . Brawler 1 | . . . 1 . . Sentry 6 | . . . 4 2 . Best Kill Streak 7 | 4 3 3 7 2 . Combat Bots Only 7 | . 3 3 7 2 . Max Kills in Single Turn 2 | 1 1 2 1 1 . Gunslinging 1 | . . 1 . . . Exploded . | . . . . . . Melee . | . . . . . . Uniques/NPCs Destroyed . | . . . . . . Combat | -11 -10 -10 -9 -9 -9 -------- Run | Yrd Mat Min Mat Min Exi Hostile Shots Fired 208 | . 54 30 74 50 . Missed 47 | . 11 9 14 13 . Damage Taken 2207 | . 537 277 809 584 . Core 205 | . 77 14 39 75 . Absorbed by Shields . | . . . . . . Core Remaining (%) 81 | 100 . 63 . . . Volleys Fired 176 | 9 60 18 75 14 . Largest 2 | 2 2 2 2 2 . Hottest 60 | 40 40 40 60 46 . Shots Fired 325 | 18 120 36 122 29 . Gun 325 | 18 120 36 122 29 . Cannon . | . . . . . . Launcher . | . . . . . . Special . | . . . . . . Kinetic 300 | 18 120 36 97 29 . Thermal . | . . . . . . Explosive . | . . . . . . Electromagnetic 25 | . . . 25 . . Robot Hit Streak 22 | 8 8 8 22 11 . Robot Miss Streak 4 | 2 4 2 3 2 . Penetration Max . | . . . . . . Secondary Targets 2 | . . 1 1 . . Max Gunslinging Chain 1 | . . 1 1 . . Shots Hit Robots 232 | 13 69 26 91 33 . Core Hits 91 | 5 28 13 37 8 . Critical Kills . | . . . . . . Critical Parts Destroyed 3 | . . . 1 2 . Critical Strikes 3 | . . . 1 2 . Destroy 1 | . . . 1 . . Smash 2 | . . . . 2 . Melee Attacks 13 | . . . 1 12 . Impact 13 | . . . 1 12 . Slashing . | . . . . . . Piercing . | . . . . . . Sneak Attacks . | . . . . . . Combat Hostiles . | . . . . . . Follow-up Attacks . | . . . . . . Damage Inflicted 3032 | 143 749 335 1265 540 . Guns 2834 | 143 749 335 1265 342 . Cannons . | . . . . . . Explosions . | . . . . . . Melee 198 | . . . . 198 . Ramming . | . . . . . . Kinetic 2624 | 143 749 335 1055 342 . Thermal . | . . . . . . Explosive . | . . . . . . Electromagnetic 210 | . . . 210 . . Impact 198 | . . . . 198 . Slashing . | . . . . . . Piercing . | . . . . . . Highest Corruption 3 | . . . 3 3 1 Average Corruption 2 | . . . 3 2 1 Corruption Purged 2 | . . . . 2 . Corruption Blocked . | . . . . . . Effects 33 | . . . 17 16 . Message Errors 6 | . . . 4 2 . Matter Fused 9 | . . . 6 3 . Heat Flow Errors 4 | . . . 2 2 . Energy Discharges 3 | . . . 2 1 . Data Loss (minor) 6 | . . . . 6 . Data Loss (major) 1 | . . . . 1 . Misfires 2 | . . . 1 1 . Alerts 1 | . . . 1 . . Weapon Failures 1 | . . . 1 . . Overload Shots . | . . . . . . Overflow Damage 22 | . . . . 22 . Projectiles . | . . . . . . Explosions . | . . . . . . Melee 22 | . . . . 22 . Knockbacks . | . . . . . . Impact . | . . . . . . Kinetic . | . . . . . . Secondary . | . . . . . . Self-Inflicted Damage . | . . . . . . Shots . | . . . . . . Rammed . | . . . . . . Targets Rammed . | . . . . . . Kicked . | . . . . . . Crushed . | . . . . . . Highest Temperature 210 | . 69 16 170 210 . Average Temperature 44 | . 23 7 41 89 . Received Heat Transfer 1011 | . 279 150 324 258 . Effects 3 | . . . . 3 . Interference 3 | . . . . 3 . Siege Activations . | . . . . . . Robots Corrupted . | . . . . . . Combat Hostiles . | . . . . . . Parts Fried 1 | . . . . 1 . Impact Corruptions 3 | . . . . 3 . Robots Melted . | . . . . . . Combat Hostiles . | . . . . . . Parts Melted . | . . . . . . Heat Transferred . | . . . . . . Parts Sabotaged . | . . . . . . Parts Stolen . | . . . . . . Parts Stripped . | . . . . . . Power Chain Reactions . | . . . . . . Alert | -11 -10 -10 -9 -9 -9 ------- Run | Yrd Mat Min Mat Min Exi Peak Influence 274 | 20 171 70 274 124 . Initial 39 | . 13 7 19 39 . Average 58 | 11 63 26 101 39 . Maximum Alert Level 1 | . . . 1 . . Low Security (%) 96 | 100 100 100 87 100 . Level 1 3 | . . . 12 . . Level 2 . | . . . . . . Level 3 . | . . . . . . Level 4 . | . . . . . . Level 5 . | . . . . . . High Security . | . . . . . . Max Security . | . . . . . . Squads Dispatched 4 | . 2 . 2 . . Investigation 2 | . 1 . 1 . . Extermination . | . . . . . . Reinforcement 2 | . 1 . 1 . . Assault . | . . . . . . Garrison . | . . . . . . Intercept . | . . . . . . Searches Triggered . | . . . . . . Construction Impeded . | . . . . . . Haulers Reinforced . | . . . . . . Active Scanning Responses . | . . . . . . Cargo Convoy Interrupts . | . . . . . . Stealth | -11 -10 -10 -9 -9 -9 --------- Run | Yrd Mat Min Mat Min Exi Distress Signals 3 | . 1 . 2 . . Communications Jammed . | . . . . . . Distress Signals . | . . . . . . Times Spotted 51 | . 17 7 23 4 . Peak Tracking Total 7 | . 3 3 7 2 . Tactical Retreats 5 | . 2 . 3 . . Traps | -11 -10 -10 -9 -9 -9 ------- Run | Yrd Mat Min Mat Min Exi Traps Triggered 2 | . 1 . . 1 . Indirectly . | . . . . . . Trap Hack Attempts . | . . . . . . Triggered . | . . . . . . Disarmed . | . . . . . . Reprogrammed . | . . . . . . Reused . | . . . . . . Traps Extracted . | . . . . . . Installed . | . . . . . . Triggered . | . . . . . . Machines | -11 -10 -10 -9 -9 -9 ---------- Run | Yrd Mat Min Mat Min Exi Machines Disabled 2 | . . . 1 1 . Max in Single Turn 1 | . . . 1 1 . Machines Repaired . | . . . . . . Machines Dismantled . | . . . . . . Machines Sabotaged . | . . . . . . Overloaded Fab Kills . | . . . . . . Hacking | -11 -10 -10 -9 -9 -9 --------- Run | Yrd Mat Min Mat Min Exi Machines Accessed 13 | . 6 . 6 1 . Terminals 11 | . 6 . 5 . . Fabricators . | . . . . . . Repair Stations . | . . . . . . Recycling Units . | . . . . . . Scanalyzers 1 | . . . 1 . . Garrison Access . | . . . . . . Total Hacks 34 | . 16 . 17 1 . Successful 21 | . 9 . 11 1 . Failed 12 | . 6 . 6 . . Catastrophic 2 | . . . 2 . . Database Lockouts 1 | . 1 . . . . Manual 29 | . 16 . 13 . . Terminals 29 | . 16 . 13 . . Fabricators . | . . . . . . Repair Stations . | . . . . . . Recycling Units . | . . . . . . Scanalyzers 4 | . . . 4 . . Garrison Access . | . . . . . . Terminal Hacks 5 | . 2 . 2 1 . Robot Analysis 1 | . 1 . . . . Open Door 1 | . . . . 1 . Branch Access Points 1 | . . . 1 . . Terminal Index 1 | . 1 . . . . Unreport Threat 1 | . . . 1 . . Fabricator Hacks . | . . . . . . Repair Station Hacks . | . . . . . . Recycling Unit Hacks . | . . . . . . Scanalyzer 4 | . . . 4 . . Insert Component 2 | . . . 2 . . Analyze 2 | . . . 2 . . Garrison Access Hacks . | . . . . . . Unauthorized Hacks 12 | . 7 . 5 . . Terminals 12 | . 7 . 5 . . Assimilate 1 | . 1 . . . . Botnet 10 | . 5 . 5 . . Operators 1 | . 1 . . . . Fabricators . | . . . . . . Repair Stations . | . . . . . . Recycling Units . | . . . . . . Scanalyzers . | . . . . . . Garrison Access . | . . . . . . Data Cores Recovered . | . . . . . . Used . | . . . . . . Hacking Detections 9 | . 5 . 4 . . Full Trace Events 1 | . . . 1 . . Feedback Events . | . . . . . . Feedback Blocked . | . . . . . . Robot Schematics Acquired . | . . . . . . Robots Built . | . . . . . . Authchips . | . . . . . . Time . | . . . . . . Total Robot Build Rating . | . . . . . . Part Schematics Acquired 2 | . . . 2 . . Parts Built . | . . . . . . Authchips . | . . . . . . Time . | . . . . . . Total Part Build Rating . | . . . . . . Parts Repaired . | . . . . . . Time . | . . . . . . Parts Recycled . | . . . . . . Recycled Matter . | . . . . . . Retrieved Matter . | . . . . . . Retrieved Components . | . . . . . . Parts Scanalyzed 2 | . . . 2 . . Part Schematics Acquired 2 | . . . 2 . . Parts Damaged . | . . . . . . Bothacking | -11 -10 -10 -9 -9 -9 ------------ Run | Yrd Mat Min Mat Min Exi Used RIF Installer . | . . . . . . Robots Hacked . | . . . . . . Non-combat . | . . . . . . Combat . | . . . . . . Robot Hacks Applied . | . . . . . . Relay Couplers Released . | . . . . . . Fabnet Peak Effective % . | . . . . . . Robots Rewired . | . . . . . . Allies Hacked . | . . . . . . Hacks Repelled . | . . . . . . Allies | -11 -10 -10 -9 -9 -9 -------- Run | Yrd Mat Min Mat Min Exi Total Allies 1 | . 1 . . . . Largest Group 1 | . 1 1 . . . Highest-Rated Group 10 | . 10 10 . . . Highest-Rated Ally 10 | . 10 10 . . . Total Orders . | . . . . . . Ally Attacks . | . . . . . . Total Damage . | . . . . . . Kills . | . . . . . . Allies Corrupted . | . . . . . . Allies Melted . | . . . . . . Intel | -11 -10 -10 -9 -9 -9 ------- Run | Yrd Mat Min Mat Min Exi Robot Analysis Total 1 | . 1 . . . . Derelict Logs Recovered 3 | . . 1 . 2 . Drone Launches . | . . . . . . Drone Recoveries . | . . . . . . Exploration | -11 -10 -10 -9 -9 -9 ------------- Run | Yrd Mat Min Mat Min Exi Turns Passed 4587 | 190 1272 885 1176 983 81 Spaces Moved 2747 | 94 806 563 621 586 77 Core 4 | 4 . . . . . Treads 884 | 89 266 248 107 174 . Legs . | . . . . . . Wheels 1858 | 1 540 315 513 412 77 Hover 1 | . . . 1 . . Flight . | . . . . . . Fastest Speed 50 | 50 100 115 95 95 105 Average Speed 136 | 154 125 138 137 147 105 Slowest Speed 295 | 160 240 240 295 240 105 Overloaded Moves . | . . . . . . Propulsion Burnouts . | . . . . . . Robots Hopped . | . . . . . . Cave-ins Triggered . | . . . . . . Exploration Rate (%) 62 | 5 98 98 49 92 35 Regions Visited 5 Branch Regions 3 Pre-discovered Areas 1 | . . . . 1 . Known Exits Taken 1 | . . . 1 . . Unknown Exits Taken 4 | 1 1 1 . 1 . Scrap Searched 3 | . . . . 3 . Spaces Dug 1 | . . . 1 . . Terrain Destroyed 1 | . . . 1 . . Melee 1 | . . . 1 . . Projectile . | . . . . . . AOE . | . . . . . . Terrain Rammed . | . . . . . . Walls Destroyed . | . . . . . . Machines Disabled . | . . . . . . Actions | -11 -10 -10 -9 -9 -9 --------- Run | Yrd Mat Min Mat Min Exi Total 3288 | 120 963 635 835 658 77 Wait 182 | . 48 40 79 15 . Move 2742 | 93 805 562 620 585 77 Hop . | . . . . . . Pick Up 42 | 9 11 2 14 6 . Fast Attach 14 | 7 1 . 5 1 . Attach 12 | . 2 . 8 2 . Detach 1 | . . . 1 . . Swap 55 | . 17 8 16 14 . Drop 51 | 2 19 5 16 9 . Fire 176 | 9 60 18 75 14 . Melee 13 | . . . 1 12 . Ram . | . . . . . . Kick . | . . . . . . Crush . | . . . . . . Escape Stasis . | . . . . . . Rewire . | . . . . . . Trap . | . . . . . . Miscellaneous . | . . . . . . Route ------- -11/Scrapyard -10/Materials (discovered 5 exits: *Mat x3 / [*Min x2]) -10/Mines (discovered 2 exits: *Mat x2) -9/Materials (discovered 3 exits: *Mat x2 / *Min) -9/Mines (discovered 3 exits: *Mat x2 / [*Exi]) -9/Exiles (discovered 1 exit: [*Min]) History --------- Turn | Location | Event 25 | -11/Scrapyard | Discovered new exit (range 13) 191 | -11/Scrapyard | Entered Materials 309 | -10/Materials | Build established: Mutant 348 | -10/Materials | Central database locked down 491 | -10/Materials | Discovered new exit (range 16) 581 | -10/Materials | Discovered new exit (range 3) 1052 | -10/Materials | Discovered new exit (range 16) 1195 | -10/Materials | Discovered new exit (range 6) 1333 | -10/Materials | Discovered new exit (range 13) 1463 | -10/Materials | Entered Mines 1463 | -10/Mines | Accompanied by 1 ally 1677 | -10/Mines | Learned 4 Materials zone layouts 1704 | -10/Mines | Received a Rocket Launcher from a helpful Derelict 2081 | -10/Mines | Discovered new exit (range 4) 2290 | -10/Mines | Discovered new exit (range 6) 2348 | -10/Mines | Entered Materials 2348 | -9/Materials | Evolved 2 slots: Utility x2 2349 | -9/Materials | Identified exit to Materials 2699 | -9/Materials | Destroyed 7 combat bots 2706 | -9/Materials | Lost 5 parts (1p1n1u2w) 3007 | -9/Materials | Build established: Scavenger-Mutant 3066 | -9/Materials | Discovered new exit (range 10) 3231 | -9/Materials | Discovered exit to Materials (range 16) 3287 | -9/Materials | Identified exit to Mines 3524 | -9/Materials | Entered Mines 3524 | -9/Mines | Discovered exit to Materials (range 12) 3867 | -9/Mines | Build established: Mutant 3959 | -9/Mines | Discovered exit to Materials (range 11) 4272 | -9/Mines | Learned location of Storage (-8) 4311 | -9/Mines | Learned Materials stockpile data 4328 | -9/Mines | Met a Derelict who couldn't figure out how to use a Trap Extractor 4334 | -9/Mines | Build established: Scavenger-Mutant 4502 | -9/Mines | Deemed a non-threat by the Exiles lab entrance 4503 | -9/Mines | Discovered new exit (range 5) 4507 | -9/Mines | Entered Exiles 4507 | -9/Exiles | Found Exiles lab abandoned 4521 | -9/Exiles | Discovered new exit (range 15) 4588 | -9/Exiles | Self-destructed Last Messages --------------- 04364_ K-01 Serf collects debris. 04364_ U-05 Engineer lays Concrete. 04368_ U-05 Engineer builds a Wall. 04370_ K-01 Serf cleans the SHOP.Sys. 04372_ U-05 Engineer lays Concrete. 04376_ U-05 Engineer builds a Wall. 04379_ System Restoration Module purges 1% system corruption (2%). 04389_ System Restoration Module purges 1% system corruption (1%). 04389_ System Restoration Module expended. 04408_ Acquired Imp. Trap Extractor. 04423_ Dropped Imp. Trap Extractor. 04430_ System corrupted: Heat flow error (+198). 04435_ Acquired Corruption Screen. 04502_ "No threat detected, you may enter." 04503_ EXIT=FOUND LOCATION=UNKNOWN GOAL=ESCAPE 04521_ EXIT=FOUND Map ----- +----------------------------------------------------+ | ?????????????????????????????????????????????????? | | ?????????????????????????????????????????????????? | | ?????????????????????????????????????????????????? | | ?????????????????????????????????????????????????? | | ?????????????????????????????????????????????????? | | ?????????????????????????????????????????????????? | | ?????????????????????????????????????????????????? | | ?????????????????????????????????????????????????? | | ?????????????????????????????????????????????????? | | ?????????????????????????????????????????????????? | | ?????????????????????????????????????????????????? | | ?????????????????????????????????????????????????? | | ?????????????????? ??????????????????????????? | | ????????????????? ??????????????????????????? | | ?????????????????# ??????????????????????????? | | ?????????????????# ????????#?????????????????? | | ?????????????????# ???"""""??????????????????? | | ?????????????????# #??""""""?????????????????? | | ??????????????#??# #??"""""""????????????????? | | ????????????????## ###"" """"????????????????? | | ????????????????#" """"????????????????? | | ????????????????#" """#???????????????? | | ????????????????#" """#???????????????? | | ????????????????#" """#???????????????? | | ????????????????#" """#???????????????? | | ????????????????#" @ """#???????????????? | | ?????????????????# """"?? ????????????? | | ?????????????????# """#???????????????? | | ?????????????????#" "X" """"??? ???????????? | | ?????????????????#" """ #???????????????? | | ?????????????????#" """""""""#???????????????? | | ????????????????##" ###########???????????????? | | ???????????????##"" #????????#????????????????? | | ?????????????###"" #???#?????????????????????? | | ?????????????""""" ##????????????????????????? | | ???????????"" " "" ##???###########?????????? | | ???????????"" " #####"""""""""##????????? | | ?????????? " " """ """"##?#?????? | | ???????? "" " #???????? | | ??????? " """#???????? | | ???????? " "#???????? | | ???????? " "##??????? | | ???????? ""###?#??? | | ????????? """""" """#????? | | ????????? ######""" "#????# | | ?????????? ""#?????#####""" ##???# | | ???????????????????????##""" ##?## | | ????????????????????????#"""" ### | | ????????????????????????#"" | | ????????????????????????"""" | +----------------------------------------------------+ Best States ------------- Heat Dissipation 28 Energy Generation 14 Energy Capacity 265 Matter Stores 480 Matter Capacity 500 Sight Range 16 Terrain Scan Range 16 Terrain Scan Density 10 Armor Coverage 375 Evasion (%) 41 Recoil Reduction 1 Offensive Hacking 10 Trap Extractor Capacity 6 Item Schematics ----------------- Imp. Terrain Scanner | -9/Materials | Scanalyzed Structural Scanner | -9/Materials | Scanalyzed Robot Schematics ------------------ None Fabricated ------------ Nothing Alien Tech Used ----------------- None Achievements -------------- None Challenges ------------ None Game ------ Seed ThrowingRiotFemtoactuators Manual? 0 Play Time 00:34:47 Cumulative 36.8 hours Start 2024.03.12 @ 18:30:07 End 2024.03.12 @ 19:05:06 Sessions 1 Manual Loads 0 Difficulty Rogue Special Mode None Game No. 40 Rogue 40 Adventurer 0 Explorer 0 Win Type - Total 0 Types 0/0/0/0/0/0/0/0/0 Lore% 22 Gallery% 27 Achievement% 25 Wizard Run 0 Options --------- Layout 1 ASCII 0 Keyboard 0 Movement Numpad Keybinds 0 Fullscreen 2 Font 24/X11 Map View 50x35 Zoom Use 0% Tactical HUD 1 Map Filters NONE Filters NONE Steam 0 RUN: c2aa362b-365e-4526-98f8-3706ba315ab4